[Event "POL-chT 2 Liga 2019"]
[Site "Poronin"]
[Date "2019.09.12"]
[Round "6.3"]
[White "Mis, Mieszko"]
[Black "Brzeski, Maciej"]
[Result "1/2-1/2"]
[ECO "A61"]
[WhiteElo "2320"]
[BlackElo "2339"]
[Annotator "NA"]
[PlyCount "132"]
[EventDate "2019.09.07"]
[EventType "team-tourn"]
[EventCountry "POL"]
[SourceTitle "playchess.com"]
[Source "ChessBase"]
[SourceQuality "1"]
[TimeControl "40/5400+30:1800+30"]

1. d4 {[%emt 0:00:00]} Nf6 {[%emt 0:00:00]} 2. c4 {[%emt 0:00:00]} c5 {[%emt 0:00:00]} 3. d5 {[%emt 0:00:18]} e6 {[%emt 0:00:00]} 4. Nc3 {[%emt 0:00:38]} exd5 {[%emt 0:00:00]} 5. cxd5 {[%emt 0:00:07]} d6 {[%emt 0:00:00]} 6. Nf3 {[%emt 0:00:47]} g6 {[%emt 0:00:08]} 7. Bf4 {[%emt 0:00:38]} Bg7 {[%emt 0:00:11]} 8. Qa4+ {[%emt 0:00:21]} Bd7 {[%emt 0:00:12]} 9. Qb3 {[%emt 0:00:02]} Qc7 {[%emt 0:00:07]} 10. e4 {[%emt 0:00:48]} O-O {[%emt 0:00:07]} 11. Nd2 {[%emt 0:00:50]} Nh5 {[%emt 0:03:30]} 12. Be3 {[%emt 0:00:23]} f5 {[%emt 0:01:14]} 13. exf5 {[%emt 0:00:05]} Bxf5 {[%emt 0:00:21]} 14. Be2 {[%emt 0:00:13]} Nf6 {[%emt 0:02:32]} 15. Nc4 {[%emt 0:00:05]} a6 {[%emt 0:12:23]} 16. Qb6 {[%emt 0:00:04]} Qxb6 {[%emt 0:04:30]} 17. Nxb6 {[%emt 0:00:03]} Ra7 {[%emt 0:00:04]} 18. O-O-O {[%emt 0:00:03]} Nbd7 {[%emt 0:20:59]} 19. Nc4 {[%emt 0:04:09]} Ne8 {[%emt 0:02:06]} 20. g4 {[%emt 0:13:47]} Bxc3 {[%emt 0:00:27]} 21. gxf5 {[%emt 0:00:17]} Bd4 {[%emt 0:03:49]} 22. Rxd4 {[%emt 0:17:30]} cxd4 {[%emt 0:00:05]} 23. Bxd4 {[%emt 0:00:03]} Ra8 {[%emt 0:00:24]} 24. fxg6 {[%emt 0:01:19]} hxg6 {[%emt 0:00:18]} 25. Rg1 {[%emt 0:05:40]} Rf4 {[%emt 0:09:22]} 26. Rxg6+ {[%emt 0:11:28]} Kf7 {[%emt 0:00:11]} 27. Rg4 {[%emt 0:05:13]} Rxg4 {[%emt 0:00:15]} 28. Bxg4 {[%emt 0:00:02]} Ndf6 {[%emt 0:03:43]} 29. Be6+ {[%emt 0:02:54]} Kg6 {[%emt 0:04:31]} 30. a4 {[%emt 0:08:45]} b5 {[%emt 0:13:19]} 31. Nb6 {[%emt 0:00:29]} Ra7 {[%emt 0:00:42]} 32. a5 {[%emt 0:03:20]} Rh7 {[%emt 0:01:10]} 33. h3 {[%emt 0:02:30]} Nc7 {[%emt 0:08:33]} 34. Bc8 {[%emt 0:06:42]} Rh4 {[%emt 0:03:07]} 35. Be3 {[%emt 0:04:42]} Nfxd5 {[%emt 0:06:56]} 36. Nxd5 {[%emt 0:01:45]} Nxd5 {[%emt 0:00:01]} 37. Bxa6 {[%emt 0:00:36]} Nxe3 {[%emt 0:00:14]} 38. fxe3 {[%emt 0:00:08]} Ra4 {[%emt 0:00:30]} 39. Bxb5 {[%emt 0:01:28]} Rxa5 {[%emt 0:00:05]} 40. Bd3+ {[%emt 0:00:00]} Kf6 {[%emt 0:00:00]} 41. Kd2 {[%emt 0:13:08]} Ra1 {[%emt 0:01:52]} 42. Kc3 {[%emt 0:07:53]} Ke5 {[%emt 0:00:10]} 43. b4 {[%emt 0:04:29]} Ra3+ {[%emt 0:21:25]} 44. Kd2 {[%emt 0:00:48]} Ra1 {[%emt 0:05:19]} 45. b5 {[%emt 0:05:32]} Rh1 {[%emt 0:02:51]} 46. Kc3 {[%emt 0:07:50]} Rxh3 {[%emt 0:01:24]} 47. Kd2 {[%emt 0:03:28]} Kd5 {[%emt 0:00:19]} 48. Ke2 {[%emt 0:01:00]} Rh2+ {[%emt 0:00:11]} 49. Kf3 {[%emt 0:00:15]} Ke5 {[%emt 0:00:11]} 50. Bf1 {[%emt 0:00:36]} Rh1 {[%emt 0:01:09]} 51. Bd3 {[%emt 0:00:22]} Rh3+ {[%emt 0:02:34]} 52. Kf2 {[%emt 0:00:10]} Rh8 {[%emt 0:00:32]} 53. Ke2 {[%emt 0:00:44]} Rf8 {[%emt 0:00:25]} 54. Kd2 {[%emt 0:00:43]} Rf2+ {[%emt 0:00:28]} 55. Kc3 {[%emt 0:00:37]} Kd5 {[%emt 0:00:07]} 56. Kb4 {[%emt 0:01:10]} Rb2+ {[%emt 0:00:52]} 57. Kc3 {[%emt 0:00:15]} Rh2 {[%emt 0:00:19]} 58. Kb4 {[%emt 0:00:29]} Rh4+ {[%emt 0:00:55]} 59. e4+ {[%emt 0:00:23]} Kd4 {[%emt 0:00:02]} 60. Bc2 {[%emt 0:00:50]} Rh2 {[%emt 0:01:25]} 61. Bb3 {[%emt 0:00:43]} Kxe4 {[%emt 0:00:56]} 62. b6 {[%emt 0:00:10]} Rh8 {[%emt 0:00:50]} 63. Kb5 {[%emt 0:00:12]} Rb8 {[%emt 0:00:30]} 64. Kc6 {[%emt 0:00:36]} Rxb6+ {[%emt 0:00:06]} 65. Kxb6 {[%emt 0:00:02]} d5 {[%emt 0:00:06]} 66. Bxd5+ {[%emt 0:00:02]} Ke5 1/2-1/2

[Event "POL-chT 2 Liga 2019"]
[Site "Poronin"]
[Date "2019.09.12"]
[Round "6.4"]
[White "Jaskolka, Tomasz"]
[Black "Szpar, Milosz"]
[Result "1/2-1/2"]
[ECO "A46"]
[WhiteElo "2236"]
[BlackElo "2309"]
[Annotator "NA"]
[PlyCount "50"]
[EventDate "2019.09.07"]
[EventType "team-tourn"]
[EventCountry "POL"]
[SourceTitle "playchess.com"]
[Source "ChessBase"]
[SourceQuality "1"]
[TimeControl "40/5400+30:1800+30"]

1. d4 {[%emt 0:00:00]} Nf6 {[%emt 0:00:00]} 2. Nf3 {[%emt 0:00:00]} e6 {[%emt 0:02:33]} 3. e3 {[%emt 0:00:11]} c5 {[%emt 0:02:35]} 4. Bd3 {[%emt 0:00:37]} Nc6 {[%emt 0:03:03]} 5. b3 {[%emt 0:09:07]} Qa5+ {[%emt 0:10:32]} 6. c3 {[%emt 0:08:04]} Qc7 {[%emt 0:11:02]} 7. O-O {[%emt 0:02:09]} d5 {[%emt 0:00:51]} 8. Nbd2 {[%emt 0:06:26]} Be7 {[%emt 0:04:26]} 9. Bb2 {[%emt 0:06:04]} O-O {[%emt 0:00:23]} 10. Rc1 {[%emt 0:02:05]} Bd7 {[%emt 0:06:52]} 11. c4 {[%emt 0:04:15]} cxd4 {[%emt 0:07:38]} 12. Nxd4 {[%emt 0:06:54]} Rac8 {[%emt 0:06:35]} 13. cxd5 {[%emt 0:02:59]} Nxd5 {[%emt 0:02:03]} 14. Rc4 {[%emt 0:09:50]} Qa5 {[%emt 0:03:51]} 15. Nxc6 {[%emt 0:02:41]} Rxc6 {[%emt 0:07:45]} 16. Bxh7+ {[%emt 0:02:45]} Kxh7 {[%emt 0:01:00]} 17. Qh5+ {[%emt 0:00:07]} Kg8 {[%emt 0:00:05]} 18. Bxg7 {[%emt 0:00:16]} f5 {[%emt 0:02:25]} 19. Bxf8 {[%emt 0:04:33]} Bxf8 {[%emt 0:10:28]} 20. Rxc6 {[%emt 0:08:09]} bxc6 {[%emt 0:01:44]} 21. Qg5+ {[%emt 0:02:41]} Kf7 {[%emt 0:02:24]} 22. Nc4 {[%emt 0:00:55]} Qc7 {[%emt 0:00:08]} 23. f4 {[%emt 0:01:22]} Bg7 {[%emt 0:03:09]} 24. Rf3 {[%emt 0:01:38]} Nc3 {[%emt 0:01:20]} 25. Rh3 {[%emt 0:08:11]} Be8 {[%emt 0:01:03]} 1/2-1/2

[Event "POL-chT 2 Liga 2019"]
[Site "Poronin"]
[Date "2019.09.12"]
[Round "6.5"]
[White "Mika, Tomasz"]
[Black "Pulik, Krzysztof"]
[Result "1-0"]
[ECO "C06"]
[WhiteElo "2136"]
[BlackElo "2131"]
[Annotator "NA"]
[PlyCount "95"]
[EventDate "2019.09.07"]
[EventType "team-tourn"]
[EventCountry "POL"]
[SourceTitle "playchess.com"]
[Source "ChessBase"]
[SourceQuality "1"]
[TimeControl "40/5400+30:1800+30"]

1. e4 {[%emt 0:00:00]} e6 {[%emt 0:00:00]} 2. d4 {[%emt 0:00:00]} d5 {[%emt 0:00:00]} 3. Bd3 {[%emt 0:00:13]} Nf6 {[%emt 0:01:44]} 4. e5 {[%emt 0:00:11]} Nfd7 {[%emt 0:00:05]} 5. Ne2 {[%emt 0:00:47]} c5 {[%emt 0:00:29]} 6. c3 {[%emt 0:00:08]} Nc6 {[%emt 0:00:05]} 7. Nd2 {[%emt 0:02:21]} cxd4 {[%emt 0:00:18]} 8. cxd4 {[%emt 0:00:11]} f6 {[%emt 0:00:08]} 9. exf6 {[%emt 0:01:27]} Nxf6 {[%emt 0:00:07]} 10. Nf3 {[%emt 0:01:54]} Bd6 {[%emt 0:00:06]} 11. O-O {[%emt 0:00:57]} Qc7 {[%emt 0:00:15]} 12. Bg5 {[%emt 0:05:02]} O-O {[%emt 0:00:07]} 13. Rc1 {[%emt 0:02:12]} Bd7 {[%emt 0:01:44]} 14. Ng3 {[%emt 0:07:45]} Rae8 {[%emt 0:04:48]} 15. Bb5 {[%emt 0:01:35]} Qb6 {[%emt 0:03:50]} 16. Bxc6 {[%emt 0:01:26]} Bxc6 {[%emt 0:01:32]} 17. Rc2 {[%emt 0:08:15]} Ba4 {[%emt 0:06:05]} 18. b3 {[%emt 0:00:31]} Bb5 {[%emt 0:00:05]} 19. Re1 {[%emt 0:00:35]} Bb4 {[%emt 0:00:29]} 20. Bd2 {[%emt 0:02:56]} Bd6 {[%emt 0:10:43]} 21. Bc3 {[%emt 0:03:46]} Bf4 {[%emt 0:07:39]} 22. Ne5 {[%emt 0:04:03]} Rc8 {[%emt 0:06:49]} 23. Bb4 {[%emt 0:05:33]} Rfe8 {[%emt 0:01:12]} 24. Bc5 {[%emt 0:01:40]} Qc7 {[%emt 0:04:58]} 25. a4 {[%emt 0:06:29]} Ba6 {[%emt 0:01:54]} 26. Rc3 {[%emt 0:01:23]} b6 {[%emt 0:05:24]} 27. Bb4 {[%emt 0:00:40]} Qb7 {[%emt 0:01:34]} 28. Rxc8 {[%emt 0:04:19]} Rxc8 {[%emt 0:03:19]} 29. Qf3 {[%emt 0:07:19]} Bg5 {[%emt 0:09:47]} 30. Nh5 {[%emt 0:07:12]} Nxh5 {[%emt 0:03:27]} 31. Qxh5 {[%emt 0:00:02]} Bf6 {[%emt 0:00:17]} 32. Qg4 {[%emt 0:01:22]} Re8 {[%emt 0:01:58]} 33. h4 {[%emt 0:04:51]} Qc7 {[%emt 0:04:31]} 34. Re3 {[%emt 0:01:31]} Bxe5 {[%emt 0:09:52]} 35. Rxe5 {[%emt 0:00:31]} Qc1+ {[%emt 0:01:01]} 36. Kh2 {[%emt 0:00:28]} Qh6 {[%emt 0:00:10]} 37. Bd6 {[%emt 0:04:56]} Bd3 {[%emt 0:01:25]} 38. Rg5 {[%emt 0:01:48]} g6 {[%emt 0:04:44]} 39. Qf4 {[%emt 0:02:20]} Qg7 {[%emt 0:01:33]} 40. Rg3 {[%emt 0:00:00]} Ba6 {[%emt 0:00:00]} 41. h5 {[%emt 0:02:10]} Qf7 {[%emt 0:05:22]} 42. Qh6 {[%emt 0:02:00]} Qg7 {[%emt 0:00:48]} 43. Qg5 {[%emt 0:00:29]} Be2 {[%emt 0:03:03]} 44. hxg6 {[%emt 0:00:51]} hxg6 {[%emt 0:00:41]} 45. Be5 {[%emt 0:00:32]} Qh7+ {[%emt 0:00:56]} 46. Rh3 {[%emt 0:00:24]} Bh5 {[%emt 0:00:06]} 47. g4 {[%emt 0:00:36]} Qf7 {[%emt 0:00:22]} 48. f4 {[%emt 0:01:58]} 1-0

[Event "POL-chT 2 Liga 2019"]
[Site "Poronin"]
[Date "2019.09.12"]
[Round "6.6"]
[White "Lukasiewicz, Anna"]
[Black "Swiech, Joanna"]
[Result "0-1"]
[ECO "A06"]
[WhiteElo "2075"]
[BlackElo "2055"]
[Annotator "NA"]
[PlyCount "104"]
[EventDate "2019.09.07"]
[EventType "team-tourn"]
[EventCountry "POL"]
[SourceTitle "playchess.com"]
[Source "ChessBase"]
[SourceQuality "1"]
[TimeControl "40/5400+30:1800+30"]

1. Nf3 {[%emt 0:00:00]} d5 {[%emt 0:01:42]} 2. g3 {[%emt 0:01:11]} Nf6 {[%emt 0:01:01]} 3. Bg2 {[%emt 0:00:26]} e6 {[%emt 0:00:30]} 4. O-O {[%emt 0:01:19]} Bd6 {[%emt 0:01:16]} 5. c4 {[%emt 0:08:14]} O-O {[%emt 0:01:16]} 6. d3 {[%emt 0:01:24]} c5 {[%emt 0:01:56]} 7. Nc3 {[%emt 0:04:56]} Nc6 {[%emt 0:11:44]} 8. Bg5 {[%emt 0:15:13]} Be7 {[%emt 0:01:29]} 9. Nd2 {[%emt 0:08:11]} d4 {[%emt 0:05:11]} 10. Bxf6 {[%emt 0:10:31]} Bxf6 {[%emt 0:13:47]} 11. Na4 {[%emt 0:05:37]} Qa5 {[%emt 0:02:40]} 12. b3 {[%emt 0:01:10]} Be7 {[%emt 0:04:36]} 13. Nf3 {[%emt 0:04:14]} Qc7 {[%emt 0:01:56]} 14. a3 {[%emt 0:02:33]} e5 {[%emt 0:03:28]} 15. Qd2 {[%emt 0:01:45]} Bd7 {[%emt 0:01:45]} 16. Rfb1 {[%emt 0:06:25]} a5 {[%emt 0:04:18]} 17. Ne1 {[%emt 0:01:31]} f5 {[%emt 0:05:00]} 18. Nc2 {[%emt 0:07:38]} Nd8 {[%emt 0:01:42]} 19. Rf1 {[%emt 0:01:08]} Bc6 {[%emt 0:02:19]} 20. e4 {[%emt 0:02:06]} fxe4 {[%emt 0:08:09]} 21. dxe4 {[%emt 0:02:36]} Ne6 {[%emt 0:07:27]} 22. Nb2 {[%emt 0:01:16]} Ng5 {[%emt 0:00:29]} 23. f3 {[%emt 0:00:30]} Bd7 {[%emt 0:00:56]} 24. Nd3 {[%emt 0:00:54]} b5 {[%emt 0:06:55]} 25. cxb5 {[%emt 0:03:28]} Bxb5 {[%emt 0:03:03]} 26. a4 {[%emt 0:00:08]} Ba6 {[%emt 0:00:26]} 27. Nce1 {[%emt 0:05:18]} Rab8 {[%emt 0:00:30]} 28. Qc2 {[%emt 0:01:33]} Rb6 {[%emt 0:02:36]} 29. Rf2 {[%emt 0:00:07]} Rfb8 {[%emt 0:01:19]} 30. f4 {[%emt 0:01:23]} Nf7 {[%emt 0:02:21]} 31. fxe5 {[%emt 0:01:10]} Rxb3 {[%emt 0:01:04]} 32. e6 {[%emt 0:00:11]} Nd8 {[%emt 0:00:48]} 33. Nf4 {[%emt 0:00:26]} Qa7 {[%emt 0:01:26]} 34. Qd1 {[%emt 0:01:01]} c4 {[%emt 0:00:34]} 35. Qh5 {[%emt 0:00:09]} Bf8 {[%emt 0:01:12]} 36. Qf5 {[%emt 0:01:25]} Nc6 {[%emt 0:00:35]} 37. e7 {[%emt 0:00:27]} Nxe7 {[%emt 0:00:24]} 38. Qe6+ {[%emt 0:00:18]} Kh8 {[%emt 0:00:06]} 39. Nf3 {[%emt 0:01:04]} Rb1+ {[%emt 0:00:58]} 40. Rxb1 {[%emt 0:00:00]} Rxb1+ {[%emt 0:00:00]} 41. Bf1 {[%emt 0:04:11]} Rb6 {[%emt 0:06:46]} 42. Qe5 {[%emt 0:04:18]} d3 {[%emt 0:03:41]} 43. Ne6 {[%emt 0:04:55]} Ng6 {[%emt 0:02:18]} 44. Nfg5 {[%emt 0:10:59]} Rb5 {[%emt 0:11:37]} 45. Qa1 {[%emt 0:05:18]} Rxg5 {[%emt 0:02:23]} 46. Nxg5 {[%emt 0:03:51]} Bc5 {[%emt 0:00:55]} 47. Nh3 {[%emt 0:00:45]} Bc8 {[%emt 0:05:44]} 48. Qe1 {[%emt 0:00:00]} Ne5 {[%emt 0:00:00]} 49. Kh1 {[%emt 0:00:20]} Bxf2 {[%emt 0:00:00]} 50. Nxf2 {[%emt 0:00:15]} Nf3 {[%emt 0:00:00]} 51. Qc1 {[%emt 0:01:08]} Qxf2 {[%emt 0:00:00]} 52. Bg2 {[%emt 0:00:04]} Qe1+ {[%emt 0:00:00]} 0-1

[Event "POL-chT 2 Liga 2019"]
[Site "Poronin"]
[Date "2019.09.12"]
[Round "6.7"]
[White "Oglaza, Oskar"]
[Black "Bobula, Mateusz"]
[Result "1/2-1/2"]
[ECO "C15"]
[WhiteElo "2351"]
[BlackElo "2326"]
[Annotator "NA"]
[PlyCount "30"]
[EventDate "2019.09.07"]
[EventType "team-tourn"]
[EventCountry "POL"]
[SourceTitle "playchess.com"]
[Source "ChessBase"]
[SourceQuality "1"]
[TimeControl "40/5400+30:1800+30"]

1. e4 {[%emt 0:00:00]} e6 {[%emt 0:00:00]} 2. d4 {[%emt 0:00:00]} d5 {[%emt 0:00:17]} 3. Nc3 {[%emt 0:00:00]} Bb4 {[%emt 0:00:26]} 4. Qd3 {[%emt 0:00:00]} dxe4 {[%emt 0:00:33]} 5. Qxe4 {[%emt 0:00:00]} Nf6 {[%emt 0:00:29]} 6. Qh4 {[%emt 0:00:06]} Nbd7 {[%emt 0:00:44]} 7. Bd2 {[%emt 0:00:39]} b6 {[%emt 0:00:57]} 8. O-O-O {[%emt 0:03:09]} Bb7 {[%emt 0:00:24]} 9. f3 {[%emt 0:02:01]} Nd5 {[%emt 0:06:25]} 10. Qe1 {[%emt 0:19:01]} Nxc3 {[%emt 0:02:04]} 11. Bxc3 {[%emt 0:00:06]} Bxc3 {[%emt 0:00:17]} 12. Qxc3 {[%emt 0:00:04]} O-O {[%emt 0:00:33]} 13. Nh3 {[%emt 0:00:03]} Rc8 {[%emt 0:00:47]} 14. Bd3 {[%emt 0:02:04]} Qf6 {[%emt 0:01:06]} 15. Rhe1 {[%emt 0:25:18]} c5 {[%emt 0:16:26]} 1/2-1/2

[Event "POL-chT 2 Liga 2019"]
[Site "Poronin"]
[Date "2019.09.12"]
[Round "6.8"]
[White "Kyc, Jerzy"]
[Black "Pacan-Milej, Kosma"]
[Result "1-0"]
[ECO "B94"]
[WhiteElo "2309"]
[BlackElo "2287"]
[Annotator "NA"]
[PlyCount "67"]
[EventDate "2019.09.07"]
[EventType "team-tourn"]
[EventCountry "POL"]
[SourceTitle "playchess.com"]
[Source "ChessBase"]
[SourceQuality "1"]
[TimeControl "40/5400+30:1800+30"]

1. e4 {[%emt 0:00:00]} c5 {[%emt 0:00:00]} 2. Nf3 {[%emt 0:00:00]} d6 {[%emt 0:00:00]} 3. d4 {[%emt 0:00:00]} cxd4 {[%emt 0:00:00]} 4. Nxd4 {[%emt 0:00:00]} Nf6 {[%emt 0:00:00]} 5. Nc3 {[%emt 0:00:00]} a6 {[%emt 0:00:00]} 6. Bg5 {[%emt 0:00:00]} Nbd7 {[%emt 0:00:03]} 7. Bc4 {[%emt 0:00:23]} Qb6 {[%emt 0:00:05]} 8. Bb3 {[%emt 0:00:26]} e6 {[%emt 0:00:30]} 9. Qd2 {[%emt 0:00:44]} Be7 {[%emt 0:00:26]} 10. f3 {[%emt 0:00:46]} Nc5 {[%emt 0:00:20]} 11. O-O-O {[%emt 0:00:12]} Qc7 {[%emt 0:02:22]} 12. g4 {[%emt 0:02:49]} b5 {[%emt 0:00:58]} 13. a3 {[%emt 0:01:57]} Bd7 {[%emt 0:01:00]} 14. Kb1 {[%emt 0:00:33]} Rb8 {[%emt 0:04:15]} 15. h4 {[%emt 0:09:08]} a5 {[%emt 0:05:27]} 16. Bxf6 {[%emt 0:07:02]} Bxf6 {[%emt 0:02:39]} 17. g5 {[%emt 0:02:44]} Be7 {[%emt 0:01:57]} 18. h5 {[%emt 0:13:06]} b4 {[%emt 0:03:33]} 19. axb4 {[%emt 0:00:50]} axb4 {[%emt 0:08:21]} 20. Nd5 {[%emt 0:09:13]} exd5 {[%emt 0:20:38]} 21. Bxd5 {[%emt 0:00:12]} Na4 {[%emt 0:04:10]} 22. Qf4 {[%emt 0:01:50]} O-O {[%emt 0:03:03]} 23. g6 {[%emt 0:01:49]} h6 {[%emt 0:09:24]} 24. gxf7+ {[%emt 0:00:50]} Kh8 {[%emt 0:00:04]} 25. Rhg1 {[%emt 0:02:31]} Bg5 {[%emt 0:03:21]} 26. Rxg5 {[%emt 0:02:16]} hxg5 {[%emt 0:00:03]} 27. Qxg5 {[%emt 0:00:08]} Qd8 {[%emt 0:00:51]} 28. Qg6 {[%emt 0:01:31]} Qf6 {[%emt 0:18:29]} 29. e5 {[%emt 0:00:11]} Qf4 {[%emt 0:02:16]} 30. Be4 {[%emt 0:02:13]} Qh6 {[%emt 0:00:36]} 31. e6 {[%emt 0:00:22]} Be8 {[%emt 0:03:04]} 32. Qxh6+ {[%emt 0:05:12]} gxh6 {[%emt 0:00:04]} 33. fxe8=Q {[%emt 0:00:11]} Rfxe8 {[%emt 0:00:38]} 34. Bc6 {[%emt 0:00:09]} 1-0

[Event "POL-chT 2 Liga 2019"]
[Site "Poronin"]
[Date "2019.09.12"]
[Round "6.9"]
[White "Licznerski, Lukasz"]
[Black "Gesicki, Jacek"]
[Result "1/2-1/2"]
[ECO "B30"]
[WhiteElo "2356"]
[BlackElo "2234"]
[Annotator "NA"]
[PlyCount "92"]
[EventDate "2019.09.07"]
[EventType "team-tourn"]
[EventCountry "POL"]
[SourceTitle "playchess.com"]
[Source "ChessBase"]
[SourceQuality "1"]
[TimeControl "40/5400+30:1800+30"]

1. e4 {[%emt 0:00:00]} c5 {[%emt 0:00:00]} 2. Nf3 {[%emt 0:00:07]} Nc6 {[%emt 0:00:09]} 3. Nc3 {[%emt 0:00:13]} e5 {[%emt 0:00:48]} 4. Bc4 {[%emt 0:00:05]} Be7 {[%emt 0:02:43]} 5. d3 {[%emt 0:00:09]} Nf6 {[%emt 0:01:32]} 6. Ng5 {[%emt 0:00:08]} O-O {[%emt 0:00:48]} 7. f4 {[%emt 0:00:07]} exf4 {[%emt 0:03:55]} 8. Bxf4 {[%emt 0:01:47]} d6 {[%emt 0:00:08]} 9. O-O {[%emt 0:00:30]} Nd4 {[%emt 0:14:33]} 10. h3 {[%emt 0:09:11]} h6 {[%emt 0:08:39]} 11. Nf3 {[%emt 0:00:05]} Nxf3+ {[%emt 0:20:13]} 12. Qxf3 {[%emt 0:00:18]} Be6 {[%emt 0:00:29]} 13. Bxe6 {[%emt 0:17:58]} fxe6 {[%emt 0:00:15]} 14. e5 {[%emt 0:00:06]} dxe5 {[%emt 0:10:48]} 15. Bxe5 {[%emt 0:00:03]} Nd7 {[%emt 0:06:10]} 16. Bf4 {[%emt 0:00:22]} Bd6 {[%emt 0:08:19]} 17. Ne2 {[%emt 0:01:33]} Qb6 {[%emt 0:06:29]} 18. Qg4 {[%emt 0:08:32]} Bxf4 {[%emt 0:01:04]} 19. Nxf4 {[%emt 0:00:10]} Rae8 {[%emt 0:00:27]} 20. b3 {[%emt 0:01:42]} Rf5 {[%emt 0:03:46]} 21. Nh5 {[%emt 0:29:55]} Rg5 22. Qe2 {[%emt 0:02:08]} Re5 {[%emt 0:01:53]} 23. Qd1 {[%emt 0:01:57]} Qd6 {[%emt 0:01:13]} 24. Ng3 {[%emt 0:03:45]} Nf6 {[%emt 0:00:26]} 25. Rf3 {[%emt 0:05:05]} Qd4+ {[%emt 0:00:39]} 26. Kh2 {[%emt 0:01:33]} h5 {[%emt 0:01:42]} 27. Rb1 {[%emt 0:03:12]} h4 {[%emt 0:02:45]} 28. Ne2 {[%emt 0:00:11]} Qd6 {[%emt 0:00:06]} 29. Kg1 {[%emt 0:01:14]} Rf5 {[%emt 0:01:23]} 30. Qf1 {[%emt 0:01:10]} Nd5 {[%emt 0:00:21]} 31. Qf2 {[%emt 0:01:26]} Ref8 {[%emt 0:00:53]} 32. Rxf5 {[%emt 0:00:31]} Rxf5 {[%emt 0:00:00]} 33. Qxh4 {[%emt 0:00:20]} Ne3 {[%emt 0:01:29]} 34. Rc1 {[%emt 0:02:15]} Qf8 {[%emt 0:00:49]} 35. Qe1 {[%emt 0:09:00]} Rf1+ {[%emt 0:00:41]} 36. Qxf1 {[%emt 0:00:01]} Nxf1 {[%emt 0:00:03]} 37. Rxf1 {[%emt 0:00:01]} Qd6 {[%emt 0:00:02]} 38. a4 {[%emt 0:00:35]} Qe5 {[%emt 0:00:03]} 39. Kf2 {[%emt 0:01:29]} Qg5 {[%emt 0:00:30]} 40. Rd1 {[%emt 0:00:00]} Kf7 {[%emt 0:00:00]} 41. Ng1 {[%emt 0:02:07]} Qh4+ {[%emt 0:00:54]} 42. Kf1 {[%emt 0:00:26]} Qb4 {[%emt 0:07:40]} 43. Nf3 {[%emt 0:00:45]} Ke7 {[%emt 0:01:20]} 44. Re1 {[%emt 0:00:33]} Qc3 {[%emt 0:02:20]} 45. Re2 {[%emt 0:00:02]} Kd7 {[%emt 0:04:30]} 46. Kf2 {[%emt 0:00:41]} Qb2 1/2-1/2

[Event "POL-chT 2 Liga 2019"]
[Site "Poronin"]
[Date "2019.09.12"]
[Round "6.10"]
[White "Sendera, Jaroslaw"]
[Black "Punin, Andrii"]
[Result "1/2-1/2"]
[ECO "B01"]
[WhiteElo "2203"]
[BlackElo "2325"]
[Annotator "NA"]
[PlyCount "61"]
[EventDate "2019.09.07"]
[EventType "team-tourn"]
[EventCountry "POL"]
[SourceTitle "playchess.com"]
[Source "ChessBase"]
[SourceQuality "1"]
[TimeControl "40/5400+30:1800+30"]

1. e4 {[%emt 0:00:00]} d5 {[%emt 0:00:00]} 2. exd5 {[%emt 0:00:00]} Qxd5 {[%emt 0:00:00]} 3. Nc3 {[%emt 0:00:15]} Qd6 {[%emt 0:00:00]} 4. d4 {[%emt 0:00:30]} Nf6 {[%emt 0:00:00]} 5. Nf3 {[%emt 0:01:05]} c6 {[%emt 0:00:09]} 6. h3 {[%emt 0:02:20]} Bf5 {[%emt 0:00:13]} 7. Ne5 {[%emt 0:03:41]} Nbd7 {[%emt 0:00:39]} 8. Nc4 {[%emt 0:02:04]} Qc7 {[%emt 0:00:19]} 9. Qf3 {[%emt 0:04:49]} e6 {[%emt 0:02:21]} 10. Bf4 {[%emt 0:01:35]} Qd8 {[%emt 0:00:08]} 11. O-O-O {[%emt 0:14:27]} Nd5 {[%emt 0:00:10]} 12. Kb1 {[%emt 0:00:54]} Nxf4 {[%emt 0:01:11]} 13. Qxf4 {[%emt 0:03:10]} Bb4 {[%emt 0:00:10]} 14. Bd3 {[%emt 0:22:22]} Bxd3 {[%emt 0:09:58]} 15. Rxd3 {[%emt 0:00:27]} O-O {[%emt 0:00:18]} 16. Ne4 {[%emt 0:02:46]} Nb6 {[%emt 0:11:05]} 17. Nxb6 {[%emt 0:04:31]} axb6 {[%emt 0:00:37]} 18. h4 {[%emt 0:01:39]} f5 {[%emt 0:07:39]} 19. Ng5 {[%emt 0:03:48]} Qd5 {[%emt 0:03:03]} 20. a3 {[%emt 0:02:20]} h6 {[%emt 0:05:47]} 21. Nf3 {[%emt 0:07:06]} Bd6 {[%emt 0:01:13]} 22. Qe3 {[%emt 0:12:50]} b5 {[%emt 0:02:09]} 23. Re1 {[%emt 0:00:07]} Rfe8 {[%emt 0:01:06]} 24. b4 {[%emt 0:00:30]} Rad8 {[%emt 0:05:21]} 25. Kb2 {[%emt 0:00:39]} Bc7 {[%emt 0:01:57]} 26. g3 {[%emt 0:00:43]} Bb6 {[%emt 0:02:15]} 27. Qd2 {[%emt 0:01:08]} Bc7 {[%emt 0:06:07]} 28. Re2 {[%emt 0:00:35]} Qd7 {[%emt 0:02:28]} 29. Ne5 {[%emt 0:01:42]} Qe7 {[%emt 0:00:23]} 30. f4 {[%emt 0:00:12]} Bxe5 {[%emt 0:02:23]} 31. Rxe5 1/2-1/2